[Event "Championnat d'Europe de Blitz"]
[Date "2024.12.09"]
[White "Domingo Nunez, Ruben"]
[Black "Peyrer, Konstantin"]
[WhiteElo "2409"]
[BlackElo "2440"]
[Round "9.25"]
[Result "0-1"]
[TimeControl "180+2"]

1. e4 {[%clk 00:03:03]} e5 {[%emt 00:00:01] [%clk 00:03:02]} 2. Nf3 {[%emt
00:00:02] [%clk 00:03:04]} Nc6 {[%clk 00:03:03]} 3. Bc4 {[%emt 00:00:03] [%clk
00:03:05]} d6 {[%emt 00:00:03] [%clk 00:03:02]} 4. c3 {[%emt 00:00:01] [%clk
00:03:05]} f5 {[%clk 00:03:02]} 5. exf5 {[%emt 00:00:02] [%clk 00:03:05]} e4
{[%emt 00:00:09] [%clk 00:02:56]} 6. Qe2 {[%emt 00:00:08] [%clk 00:02:59]} Qe7
{[%clk 00:02:56]} 7. Ng1 {[%emt 00:00:10] [%clk 00:02:51]} Bxf5 {[%emt 00:00:03]
[%clk 00:02:55]} 8. g4 {[%emt 00:00:04] [%clk 00:02:50]} Bd7 {[%emt 00:00:06]
[%clk 00:02:50]} 9. d4 {[%emt 00:00:18] [%clk 00:02:34]} exd3 {[%emt 00:00:03]
[%clk 00:02:50]} 10. Bxd3 {[%emt 00:00:14] [%clk 00:02:21]} Bxg4 {[%emt
00:00:04] [%clk 00:02:49]} 11. Qxe7+ {[%clk 00:02:22]} Bxe7 {[%emt 00:00:01]
[%clk 00:02:49]} 12. Na3 {[%emt 00:00:03] [%clk 00:02:22]} Nf6 {[%emt 00:00:02]
[%clk 00:02:49]} 13. Nb5 {[%emt 00:00:01] [%clk 00:02:23]} O-O-O {[%emt
00:00:02] [%clk 00:02:49]} 14. h3 {[%clk 00:02:25]} Bh5 {[%emt 00:00:03] [%clk
00:02:47]} 15. Ne2 {[%clk 00:02:26]} Ne5 {[%emt 00:00:03] [%clk 00:02:45]} 16.
Bc2 {[%emt 00:00:04] [%clk 00:02:24]} Rhe8 {[%emt 00:00:09] [%clk 00:02:38]} 17.
Nf4 {[%emt 00:00:17] [%clk 00:02:10]} Bf3 {[%emt 00:00:10] [%clk 00:02:29]} 18.
O-O {[%emt 00:00:02] [%clk 00:02:11]} Be4 {[%emt 00:00:11] [%clk 00:02:20]} 19.
Bxe4 {[%emt 00:00:41] [%clk 00:01:31]} Nxe4 {[%emt 00:00:02] [%clk 00:02:21]}
20. Ne6 {[%emt 00:00:01] [%clk 00:01:32]} Rd7 {[%clk 00:02:21]} 21. f3 {[%clk
00:01:34]} Ng3 {[%emt 00:00:08] [%clk 00:02:14]} 22. Rd1 {[%emt 00:00:11] [%clk
00:01:26]} Bh4 {[%emt 00:00:10] [%clk 00:02:05]} 23. Ned4 {[%emt 00:00:15] [%clk
00:01:14]} a6 {[%emt 00:00:06] [%clk 00:02:01]} 24. Na3 {[%emt 00:00:13] [%clk
00:01:03]} c5 {[%emt 00:00:01] [%clk 00:02:01]} 25. f4 {[%emt 00:00:11] [%clk
00:00:54]} cxd4 {[%emt 00:00:07] [%clk 00:01:56]} 26. fxe5 {[%clk 00:00:55]}
dxe5 {[%emt 00:00:03] [%clk 00:01:55]} 27. Nc4 {[%clk 00:00:57]} Re6 {[%emt
00:00:16] [%clk 00:01:41]} 28. cxd4 {[%emt 00:00:35] [%clk 00:00:24]} exd4
{[%emt 00:00:03] [%clk 00:01:40]} 29. Bd2 {[%emt 00:00:10] [%clk 00:00:16]} b5
{[%emt 00:00:08] [%clk 00:01:34]} 30. Na5 {[%emt 00:00:05] [%clk 00:00:13]} Rf7
{[%emt 00:00:03] [%clk 00:01:32]} 31. Rac1+ {[%emt 00:00:03] [%clk 00:00:13]}
Kd7 {[%emt 00:00:01] [%clk 00:01:33]} 32. Rc5 {[%emt 00:00:08] [%clk 00:00:08]}
Rf5 {[%emt 00:00:05] [%clk 00:01:29]} 33. Nb3 {[%emt 00:00:02] [%clk 00:00:08]}
Be7 {[%emt 00:00:02] [%clk 00:01:28]} 34. Rc2 {[%emt 00:00:04] [%clk 00:00:07]}
Rd5 {[%emt 00:00:04] [%clk 00:01:26]} 35. Bc3 {[%emt 00:00:02] [%clk 00:00:07]}
Ne2+ {[%emt 00:00:10] [%clk 00:01:18]} 36. Kf1 {[%clk 00:00:09]} Rf5+ {[%emt
00:00:26] [%clk 00:00:53]} 37. Kg2 {[%clk 00:00:10]} Rg6+ {[%emt 00:00:02] [%clk
00:00:54]} 38. Kh1 {[%emt 00:00:03] [%clk 00:00:09]} Rf2 {[%emt 00:00:04] [%clk
00:00:52]} 39. Rxe2 {[%emt 00:00:08] [%clk 00:00:03]} Rxe2 {[%emt 00:00:04]
[%clk 00:00:49]} 40. Nxd4 {[%emt 00:00:01] [%clk 00:00:04]} Re4 {[%emt 00:00:03]
[%clk 00:00:48]} 41. Nxb5+ {[%clk 00:00:05]} Bd6 {[%emt 00:00:09] [%clk
00:00:41]} 42. Nd4 {[%emt 00:00:05] [%clk 00:00:03]} Re3 {[%emt 00:00:04] [%clk
00:00:38]} 0-1

[Site "Europe Echecs"]

[Event "Championnat d'Europe de Blitz"]
[Date "2024.12.09"]
[White "Nevednichy, Vladislav"]
[Black "Beerdsen, Thomas"]
[WhiteElo "2451"]
[BlackElo "2502"]
[Round "9.26"]
[Result "1/2-1/2"]
[TimeControl "180+2"]

1. e4 {[%clk 00:03:03]} e5 {[%emt 00:00:02] [%clk 00:03:03]} 2. Nf3 {[%emt
00:00:02] [%clk 00:03:02]} Nc6 {[%emt 00:00:02] [%clk 00:03:04]} 3. Bc4 {[%clk
00:03:03]} Nf6 {[%emt 00:00:01] [%clk 00:03:04]} 4. d3 {[%clk 00:03:05]} h6
{[%emt 00:00:02] [%clk 00:03:05]} 5. c3 {[%emt 00:00:14] [%clk 00:02:52]} d6
{[%emt 00:00:02] [%clk 00:03:04]} 6. a4 {[%emt 00:00:04] [%clk 00:02:51]} g5
{[%emt 00:00:05] [%clk 00:03:00]} 7. a5 {[%emt 00:00:02] [%clk 00:02:51]} a6
{[%emt 00:00:01] [%clk 00:03:01]} 8. h3 {[%emt 00:00:21] [%clk 00:02:32]} Qe7
{[%emt 00:00:13] [%clk 00:02:50]} 9. Nbd2 {[%emt 00:00:03] [%clk 00:02:32]} Be6
{[%emt 00:00:02] [%clk 00:02:50]} 10. Qa4 {[%emt 00:00:19] [%clk 00:02:15]} Bg7
{[%emt 00:00:08] [%clk 00:02:44]} 11. Nf1 {[%emt 00:00:08] [%clk 00:02:10]} d5
{[%emt 00:00:08] [%clk 00:02:38]} 12. Ba2 {[%emt 00:00:32] [%clk 00:01:39]}
O-O-O {[%emt 00:00:13] [%clk 00:02:27]} 13. Ng3 {[%emt 00:00:03] [%clk
00:01:38]} Kb8 {[%emt 00:00:03] [%clk 00:02:25]} 14. O-O {[%emt 00:00:06] [%clk
00:01:35]} g4 {[%emt 00:00:03] [%clk 00:02:25]} 15. hxg4 {[%emt 00:00:13] [%clk
00:01:24]} Bxg4 {[%clk 00:02:25]} 16. Nh4 {[%emt 00:00:03] [%clk 00:01:23]} Be6
{[%emt 00:00:25] [%clk 00:02:02]} 17. Nhf5 {[%emt 00:00:06] [%clk 00:01:19]} Qf8
{[%emt 00:00:01] [%clk 00:02:03]} 18. b4 {[%emt 00:00:07] [%clk 00:01:15]} Na7
{[%emt 00:00:21] [%clk 00:01:43]} 19. c4 {[%emt 00:00:01] [%clk 00:01:16]} dxe4
{[%emt 00:00:07] [%clk 00:01:38]} 20. dxe4 {[%emt 00:00:02] [%clk 00:01:17]}
Nxe4 {[%emt 00:00:05] [%clk 00:01:35]} 21. b5 {[%emt 00:00:18] [%clk 00:01:01]}
axb5 {[%emt 00:00:06] [%clk 00:01:30]} 22. cxb5 {[%emt 00:00:03]} Nc3 {[%clk
00:01:32]} 23. Qc2 {[%emt 00:00:08] [%clk 00:00:54]} Nxa2 {[%emt 00:00:04] [%clk
00:01:30]} 24. b6 {[%emt 00:00:02] [%clk 00:00:55]} Nc6 {[%emt 00:00:03] [%clk
00:01:29]} 25. bxc7+ {[%emt 00:00:09] [%clk 00:00:48]} Kxc7 {[%emt 00:00:01]
[%clk 00:01:29]} 26. Rxa2 {[%emt 00:00:06] [%clk 00:00:44]} Bxa2 {[%emt
00:00:02] [%clk 00:01:30]} 27. Qxa2 {[%emt 00:00:01] [%clk 00:00:45]} Ra8 {[%emt
00:00:30] [%clk 00:01:02]} 28. Ba3 {[%emt 00:00:01] [%clk 00:00:45]} Rxa5 {[%emt
00:00:06] [%clk 00:00:58]} 29. Bxf8 {[%emt 00:00:01] [%clk 00:00:46]} Rxa2
{[%clk 00:00:59]} 30. Bxg7 {[%emt 00:00:01] [%clk 00:00:47]} Rb8 {[%emt
00:00:05] [%clk 00:00:57]} 31. Rc1 {[%emt 00:00:04] [%clk 00:00:44]} Kd7 {[%emt
00:00:14] [%clk 00:00:44]} 32. Nxh6 {[%emt 00:00:09] [%clk 00:00:38]} Ke6 {[%emt
00:00:09] [%clk 00:00:37]} 33. Re1 {[%emt 00:00:14] [%clk 00:00:26]} Rba8 {[%emt
00:00:02] [%clk 00:00:36]} 34. Ne4 {[%emt 00:00:09] [%clk 00:00:20]} Ra1 {[%emt
00:00:04] [%clk 00:00:35]} 35. Rxa1 {[%emt 00:00:03] [%clk 00:00:19]} Rxa1+
{[%emt 00:00:01] [%clk 00:00:36]} 36. Kh2 {[%clk 00:00:20]} b5 {[%emt 00:00:04]
[%clk 00:00:34]} 37. Ng5+ {[%emt 00:00:02] [%clk 00:00:20]} Kd5 {[%emt 00:00:01]
[%clk 00:00:34]} 38. Nhxf7 {[%emt 00:00:03] [%clk 00:00:19]} b4 {[%emt 00:00:02]
[%clk 00:00:36]} 39. Nf3 {[%clk 00:00:20]} Ra7 {[%emt 00:00:04] [%clk 00:00:34]}
40. N7xe5 {[%emt 00:00:08] [%clk 00:00:14]} Rxg7 {[%emt 00:00:02] [%clk
00:00:34]} 41. Nxc6 {[%clk 00:00:15]} Kxc6 {[%emt 00:00:01] [%clk 00:00:35]} 42.
Kh3 {[%emt 00:00:04] [%clk 00:00:14]} Kd5 {[%emt 00:00:02] [%clk 00:00:34]} 43.
Nd2 {[%emt 00:00:02] [%clk 00:00:14]} Kd4 {[%emt 00:00:02] [%clk 00:00:34]} 44.
g4 {[%clk 00:00:16]} Kd3 {[%emt 00:00:02] [%clk 00:00:33]} 45. Nb3 {[%clk
00:00:17]} Kc3 {[%emt 00:00:01] [%clk 00:00:34]} 46. Nc5 {[%emt 00:00:02] [%clk
00:00:17]} Rc7 {[%emt 00:00:04] [%clk 00:00:32]} 47. Na6 {[%emt 00:00:06] [%clk
00:00:13]} Rh7 {[%emt 00:00:02] [%clk 00:00:31]} 48. Kg3 {[%clk 00:00:15]} b3
{[%emt 00:00:02] [%clk 00:00:31]} 49. Nc5 {[%clk 00:00:16]} b2 {[%emt 00:00:03]
[%clk 00:00:30]} 50. Na4+ {[%emt 00:00:01] [%clk 00:00:17]} Kb3 {[%clk
00:00:32]} 51. Nxb2 {[%clk 00:00:18]} Kxb2 {[%clk 00:00:33]} 52. g5 {[%emt
00:00:01] [%clk 00:00:19]} Kc3 {[%emt 00:00:02] [%clk 00:00:33]} 53. Kg4 {[%emt
00:00:01] [%clk 00:00:20]} Kd4 {[%emt 00:00:02] [%clk 00:00:33]} 54. g6 {[%emt
00:00:01] [%clk 00:00:21]} Rh2 {[%emt 00:00:18] [%clk 00:00:17]} 55. f4 {[%emt
00:00:06] [%clk 00:00:17]} Ke4 {[%emt 00:00:10] [%clk 00:00:08]} 56. Kg5 {[%emt
00:00:01] [%clk 00:00:18]} Rg2+ {[%emt 00:00:04] [%clk 00:00:07]} 57. Kf6 {[%clk
00:00:20]} Ra2 {[%emt 00:00:03] [%clk 00:00:06]} 58. g7 {[%emt 00:00:07] [%clk
00:00:14]} Ra6+ {[%emt 00:00:02] [%clk 00:00:07]} 59. Kf7 {[%emt 00:00:04] [%clk
00:00:12]} Ra7+ {[%emt 00:00:03] [%clk 00:00:06]} 60. Kf8 {[%clk 00:00:13]} Kxf4
{[%emt 00:00:03] [%clk 00:00:06]} 61. g8=Q {[%emt 00:00:02] [%clk 00:00:13]}
Ra8+ {[%clk 00:00:08]} 62. Kf7 {[%clk 00:00:14]} Rxg8 {[%clk 00:00:09]} 63. Kxg8
{[%emt 00:00:01] [%clk 00:00:16]} 1/2-1/2

[Site "Europe Echecs"]

[Event "Championnat d'Europe de Blitz"]
[Date "2024.12.09"]
[White "Georgiev, Kiril"]
[Black "Goraj, Barbara"]
[WhiteElo "2537"]
[BlackElo "2178"]
[Round "9.27"]
[Result "1-0"]
[TimeControl "180+2"]

1. Nf3 {[%emt 00:02:33] [%clk 00:03:03]} Nf6 {[%emt 00:00:03] [%clk 00:03:01]}
2. c4 {[%emt 00:00:02] [%clk 00:03:03]} g6 {[%emt 00:00:02] [%clk 00:03:02]} 3.
g3 {[%emt 00:00:07] [%clk 00:02:58]} Bg7 {[%emt 00:00:02] [%clk 00:03:02]} 4.
Bg2 {[%clk 00:02:59]} O-O {[%emt 00:00:02] [%clk 00:03:02]} 5. O-O {[%emt
00:00:02] [%clk 00:03:00]} d6 {[%clk 00:03:04]} 6. Nc3 {[%clk 00:03:01]} Nc6
{[%emt 00:00:04] [%clk 00:03:02]} 7. Rb1 {[%emt 00:00:04] [%clk 00:02:58]} e5
{[%emt 00:00:05] [%clk 00:02:59]} 8. b4 {[%emt 00:00:02] [%clk 00:02:58]} Be6
{[%emt 00:00:17] [%clk 00:02:44]} 9. b5 {[%emt 00:00:08] [%clk 00:02:52]} Ne7
{[%emt 00:00:07] [%clk 00:02:38]} 10. d3 {[%emt 00:00:06] [%clk 00:02:48]} c6
{[%emt 00:00:03] [%clk 00:02:37]} 11. a4 {[%emt 00:00:07] [%clk 00:02:44]} h6
{[%emt 00:00:09] [%clk 00:02:30]} 12. Ba3 {[%emt 00:00:06] [%clk 00:02:40]} Qc7
{[%emt 00:00:09] [%clk 00:02:23]} 13. Qb3 {[%emt 00:00:19] [%clk 00:02:22]} Rab8
{[%emt 00:00:18] [%clk 00:02:07]} 14. Rfc1 {[%emt 00:00:02] [%clk 00:02:22]} Nf5
{[%emt 00:00:04] [%clk 00:02:06]} 15. e3 {[%emt 00:00:16] [%clk 00:02:08]} Rfd8
{[%emt 00:00:21] [%clk 00:01:47]} 16. Nd2 {[%emt 00:00:26] [%clk 00:01:43]} c5
{[%emt 00:00:23] [%clk 00:01:27]} 17. b6 {[%emt 00:00:04] [%clk 00:01:41]} axb6
{[%emt 00:00:02] [%clk 00:01:27]} 18. Qxb6 {[%emt 00:00:02] [%clk 00:01:41]} Qe7
{[%emt 00:00:21] [%clk 00:01:09]} 19. Qa7 {[%emt 00:00:12] [%clk 00:01:30]} h5
{[%emt 00:00:19] [%clk 00:00:52]} 20. Rxb7 {[%emt 00:00:04] [%clk 00:01:27]}
Rxb7 {[%emt 00:00:03] [%clk 00:00:53]} 21. Qxb7 {[%emt 00:00:01] [%clk
00:01:28]} Rd7 {[%emt 00:00:04] [%clk 00:00:51]} 22. Qb8+ {[%emt 00:00:08] [%clk
00:01:21]} Rd8 {[%emt 00:00:02] [%clk 00:00:52]} 23. Qb3 {[%emt 00:00:09] [%clk
00:01:12]} h4 {[%emt 00:00:03] [%clk 00:00:52]} 24. a5 {[%emt 00:00:11] [%clk
00:01:03]} hxg3 {[%emt 00:00:03] [%clk 00:00:51]} 25. hxg3 {[%emt 00:00:01]
[%clk 00:01:03]} Bc8 {[%emt 00:00:28] [%clk 00:00:26]} 26. Qb6 {[%emt 00:00:09]
[%clk 00:00:55]} Nd7 {[%emt 00:00:14] [%clk 00:00:15]} 27. Qc7 {[%emt 00:00:09]
[%clk 00:00:47]} Ba6 {[%emt 00:00:03] [%clk 00:00:15]} 28. Nd5 {[%emt 00:00:07]
[%clk 00:00:41]} Qe8 {[%emt 00:00:06] [%clk 00:00:12]} 29. Qa7 {[%emt 00:00:05]
[%clk 00:00:38]} Bc8 {[%emt 00:00:10] [%clk 00:00:04]} 30. Ne4 {[%emt 00:00:07]
[%clk 00:00:32]} Kf8 {[%emt 00:00:04] [%clk 00:00:03]} 31. Rb1 {[%emt 00:00:05]
[%clk 00:00:29]} Bh6 {[%emt 00:00:02] [%clk 00:00:03]} 32. Bh3 {[%emt 00:00:03]
[%clk 00:00:27]} Ng7 {[%emt 00:00:02] [%clk 00:00:03]} 33. Nxd6 {[%emt 00:00:04]
[%clk 00:00:25]} 1-0

[Site "Europe Echecs"]

[Event "Championnat d'Europe de Blitz"]
[Date "2024.12.09"]
[White "Radeva, Viktoria"]
[Black "Kalezic, Blazo"]
[WhiteElo "2275"]
[BlackElo "2382"]
[Round "9.28"]
[Result "0-1"]
[TimeControl "180+2"]

1. e4 {[%emt 00:00:01] [%clk 00:03:03]} e6 {[%emt 00:00:02] [%clk 00:03:02]} 2.
d4 {[%emt 00:00:02] [%clk 00:03:04]} d5 {[%clk 00:03:03]} 3. e5 {[%emt 00:00:02]
[%clk 00:03:04]} c5 {[%emt 00:00:01] [%clk 00:03:03]} 4. c3 {[%emt 00:00:01]
[%clk 00:03:05]} Nc6 {[%emt 00:00:01] [%clk 00:03:04]} 5. Nf3 {[%clk 00:03:05]}
Bd7 {[%emt 00:00:03] [%clk 00:03:03]} 6. Be2 {[%emt 00:00:02] [%clk 00:03:06]}
Rc8 {[%emt 00:00:28] [%clk 00:02:36]} 7. O-O {[%emt 00:00:05] [%clk 00:03:03]}
Qb6 {[%emt 00:00:16] [%clk 00:02:23]} 8. dxc5 {[%emt 00:00:24] [%clk 00:02:41]}
Bxc5 {[%emt 00:00:11] [%clk 00:02:14]} 9. Bd3 {[%emt 00:00:30] [%clk 00:02:13]}
h6 {[%emt 00:00:30] [%clk 00:01:45]} 10. Nbd2 {[%emt 00:00:06] [%clk 00:02:09]}
Qc7 {[%emt 00:00:07] [%clk 00:01:40]} 11. Qe2 {[%emt 00:00:03] [%clk 00:02:08]}
a6 {[%emt 00:00:05] [%clk 00:01:37]} 12. Nb3 {[%emt 00:00:02] [%clk 00:02:08]}
Ba7 {[%emt 00:00:10] [%clk 00:01:29]} 13. Be3 {[%emt 00:00:12] [%clk 00:01:59]}
Bb8 {[%emt 00:00:13] [%clk 00:01:18]} 14. Bd4 {[%emt 00:00:18] [%clk 00:01:43]}
Nge7 {[%emt 00:00:17] [%clk 00:01:03]} 15. Rfe1 {[%emt 00:00:04] [%clk
00:01:41]} Nxd4 {[%emt 00:00:16] [%clk 00:00:49]} 16. cxd4 {[%emt 00:00:02]
[%clk 00:01:41]} O-O {[%emt 00:00:17] [%clk 00:00:34]} 17. h4 {[%emt 00:00:02]
[%clk 00:01:41]} f5 {[%emt 00:00:16] [%clk 00:00:20]} 18. exf6 {[%emt 00:00:08]
[%clk 00:01:35]} Rxf6 {[%clk 00:00:21]} 19. Ne5 {[%emt 00:00:04] [%clk
00:01:33]} Nc6 {[%emt 00:00:06] [%clk 00:00:17]} 20. Rac1 {[%emt 00:00:02] [%clk
00:01:33]} Rcf8 {[%emt 00:00:05] [%clk 00:00:14]} 21. f3 {[%emt 00:00:11] [%clk
00:01:25]} Be8 {[%emt 00:00:03] [%clk 00:00:13]} 22. Bb1 {[%emt 00:00:03] [%clk
00:01:24]} Qb6 {[%emt 00:00:02] [%clk 00:00:13]} 23. Nxc6 {[%emt 00:00:15] [%clk
00:01:11]} Bxc6 {[%emt 00:00:02] [%clk 00:00:13]} 24. Qd3 {[%emt 00:00:05] [%clk
00:01:08]} Bg3 {[%emt 00:00:07] [%clk 00:00:08]} 25. Re2 {[%emt 00:00:17] [%clk
00:00:54]} Bb5 {[%clk 00:00:08]} 26. Qh7+ {[%emt 00:00:02] [%clk 00:00:54]} Kf7
{[%clk 00:00:10]} 27. Rec2 {[%emt 00:00:10] [%clk 00:00:46]} Bc4 {[%emt
00:00:02] [%clk 00:00:10]} 28. Rxc4 {[%emt 00:00:19] [%clk 00:00:29]} dxc4
{[%emt 00:00:01] [%clk 00:00:11]} 29. Rxc4 {[%emt 00:00:01] [%clk 00:00:30]}
Bxh4 {[%emt 00:00:05] [%clk 00:00:08]} 30. Nc5 {[%emt 00:00:09] [%clk 00:00:23]}
Qxb2 {[%emt 00:00:03] [%clk 00:00:06]} 31. Nd7 {[%emt 00:00:09] [%clk 00:00:17]}
Qf2+ {[%emt 00:00:02] [%clk 00:00:06]} 32. Kh2 {[%emt 00:00:06] [%clk 00:00:13]}
Rxf3 {[%emt 00:00:03] [%clk 00:00:05]} 33. Ne5+ {[%emt 00:00:02] [%clk
00:00:13]} Ke7 {[%emt 00:00:01] [%clk 00:00:05]} 34. Qxg7+ {[%emt 00:00:03]
[%clk 00:00:12]} R8f7 {[%emt 00:00:02] [%clk 00:00:05]} 35. Rc7+ {[%emt
00:00:02] [%clk 00:00:12]} Kd8 {[%clk 00:00:06]} 36. Qg8+ {[%emt 00:00:05] [%clk
00:00:08]} Kxc7 {[%clk 00:00:07]} 0-1

[Site "Europe Echecs"]

[Event "Championnat d'Europe de Blitz"]
[Date "2024.12.09"]
[White "Redzisz, Michal"]
[Black "Samunenkov, Ihor"]
[WhiteElo "2263"]
[BlackElo "2543"]
[Round "9.29"]
[Result "0-1"]
[TimeControl "180+2"]

1. e4 {[%emt 00:00:02] [%clk 00:03:02]} e5 {[%emt 00:00:02] [%clk 00:03:03]} 2.
Nf3 {[%emt 00:00:01] [%clk 00:03:03]} Nf6 {[%emt 00:00:01] [%clk 00:03:03]} 3.
d4 {[%emt 00:00:25] [%clk 00:02:40]} Nxe4 {[%emt 00:00:02] [%clk 00:03:03]} 4.
Bd3 {[%emt 00:00:02] [%clk 00:02:41]} d5 {[%emt 00:00:01] [%clk 00:03:03]} 5.
Nxe5 {[%emt 00:00:02] [%clk 00:02:42]} Nd7 {[%emt 00:00:02] [%clk 00:03:03]} 6.
Nxf7 {[%emt 00:00:04] [%clk 00:02:40]} Kxf7 {[%emt 00:00:03] [%clk 00:03:01]} 7.
Qh5+ {[%emt 00:00:01] [%clk 00:02:41]} Ke6 {[%emt 00:00:02] [%clk 00:03:02]} 8.
Qe2 {[%clk 00:02:41]} Bd6 {[%emt 00:00:24] [%clk 00:02:39]} 9. c4 {[%emt
00:02:07] [%clk 00:00:38]} Kf7 {[%emt 00:00:20] [%clk 00:02:21]} 10. Qh5+ {[%emt
00:00:14] [%clk 00:00:26]} Kf8 {[%emt 00:00:03] [%clk 00:02:20]} 11. Qxd5 {[%emt
00:00:08] [%clk 00:00:20]} Ndf6 {[%emt 00:00:17] [%clk 00:02:05]} 12. Qa5 {[%emt
00:00:06] [%clk 00:00:15]} Qe7 {[%emt 00:00:21] [%clk 00:01:46]} 13. O-O {[%emt
00:00:08] [%clk 00:00:10]} b6 {[%emt 00:00:47] [%clk 00:01:01]} 14. Qe1 {[%emt
00:00:03] [%clk 00:00:08]} h6 {[%emt 00:00:22] [%clk 00:00:41]} 15. h3 {[%emt
00:00:01] [%clk 00:00:09]} Bb7 {[%emt 00:00:03] [%clk 00:00:41]} 16. Be3 {[%emt
00:00:07] [%clk 00:00:04]} Re8 {[%emt 00:00:03] [%clk 00:00:39]} 17. Nc3 {[%emt
00:00:01] [%clk 00:00:05]} Ng3 {[%emt 00:00:04] [%clk 00:00:37]} 18. fxg3 {[%emt
00:00:05] [%clk 00:00:03]} Qxe3+ {[%emt 00:00:02] [%clk 00:00:37]} 19. Qxe3
{[%emt 00:00:02] [%clk 00:00:03]} Rxe3 {[%emt 00:00:02] [%clk 00:00:36]} 20.
Rad1 {[%emt 00:00:03] [%clk 00:00:03]} Kf7 {[%emt 00:00:13] [%clk 00:00:25]} 21.
d5 {[%emt 00:00:02] [%clk 00:00:03]} Rhe8 {[%emt 00:00:03] [%clk 00:00:24]} 22.
g4 {[%emt 00:00:02] [%clk 00:00:04]} Kg8 {[%emt 00:00:03] [%clk 00:00:22]} 23.
Bf5 {[%emt 00:00:02] [%clk 00:00:04]} Bc8 {[%emt 00:00:08] [%clk 00:00:16]} 24.
Bg6 {[%clk 00:00:05]} R8e7 {[%emt 00:00:02] [%clk 00:00:16]} 25. Rd2 {[%emt
00:00:02] [%clk 00:00:05]} Bg3 {[%emt 00:00:05] [%clk 00:00:13]} 26. Rdd1 {[%emt
00:00:05] [%clk 00:00:03]} a6 {[%emt 00:00:02] [%clk 00:00:13]} 27. a3 {[%emt
00:00:01] [%clk 00:00:04]} Bd7 {[%emt 00:00:04] [%clk 00:00:10]} 28. Nb1 {[%emt
00:00:02] [%clk 00:00:04]} Ba4 {[%emt 00:00:02] [%clk 00:00:10]} 29. Rc1 {[%emt
00:00:01] [%clk 00:00:05]} Bd7 {[%emt 00:00:07] [%clk 00:00:05]} 30. Nd2 {[%emt
00:00:02] [%clk 00:00:05]} Re2 {[%emt 00:00:01] [%clk 00:00:05]} 31. Nf3 {[%emt
00:00:01] [%clk 00:00:06]} Rxb2 {[%emt 00:00:02] [%clk 00:00:06]} 32. c5 {[%clk
00:00:07]} Ree2 {[%emt 00:00:02] [%clk 00:00:05]} 33. cxb6 {[%emt 00:00:02]
[%clk 00:00:07]} Rxg2+ {[%emt 00:00:02] [%clk 00:00:06]} 34. Kh1 {[%clk
00:00:09]} cxb6 {[%emt 00:00:04] [%clk 00:00:04]} 35. Rc7 {[%emt 00:00:02] [%clk
00:00:09]} Bxc7 {[%emt 00:00:03] [%clk 00:00:04]} 0-1

[Site "Europe Echecs"]

[Event "Championnat d'Europe de Blitz"]
[Date "2024.12.09"]
[White "Grigoriants, Sergey"]
[Black "Zlatkov, Anton"]
[WhiteElo "2542"]
[BlackElo "2324"]
[Round "9.30"]
[Result "1-0"]
[TimeControl "180+2"]

1. e4 {[%clk 00:03:03]} c5 {[%emt 00:00:39] [%clk 00:02:26]} 2. Nf3 {[%emt
00:00:03] [%clk 00:03:01]} e6 {[%emt 00:00:03] [%clk 00:02:27]} 3. c3 {[%emt
00:00:08] [%clk 00:02:54]} Nf6 {[%emt 00:00:02] [%clk 00:02:27]} 4. Bd3 {[%emt
00:00:01] [%clk 00:02:55]} d5 {[%emt 00:00:03] [%clk 00:02:27]} 5. e5 {[%emt
00:00:02] [%clk 00:02:55]} Nfd7 {[%clk 00:02:28]} 6. Bc2 {[%emt 00:00:02] [%clk
00:02:56]} c4 {[%clk 00:02:29]} 7. d4 {[%emt 00:00:03] [%clk 00:02:54]} cxd3
{[%emt 00:00:01] [%clk 00:02:30]} 8. Bxd3 {[%emt 00:00:01] [%clk 00:02:55]} Nc6
{[%emt 00:00:01] [%clk 00:02:31]} 9. Bf4 {[%emt 00:00:03] [%clk 00:02:53]} Be7
{[%emt 00:00:01] [%clk 00:02:33]} 10. h4 {[%emt 00:00:12] [%clk 00:02:42]} a6
{[%emt 00:00:08] [%clk 00:02:27]} 11. Nbd2 {[%emt 00:00:06] [%clk 00:02:38]} b5
{[%emt 00:00:02] [%clk 00:02:27]} 12. Nb3 {[%emt 00:00:15] [%clk 00:02:25]} Bb7
{[%emt 00:00:02] [%clk 00:02:27]} 13. Qe2 {[%emt 00:00:02] [%clk 00:02:25]} Nc5
{[%emt 00:00:06] [%clk 00:02:23]} 14. Nxc5 {[%emt 00:00:38] [%clk 00:01:49]}
Bxc5 {[%emt 00:00:01] [%clk 00:02:24]} 15. h5 {[%emt 00:00:02] [%clk 00:01:49]}
h6 {[%emt 00:00:06] [%clk 00:02:20]} 16. O-O {[%emt 00:00:12] [%clk 00:01:38]}
d4 {[%emt 00:00:09] [%clk 00:02:14]} 17. Be4 {[%emt 00:00:14] [%clk 00:01:26]}
Qb6 {[%emt 00:00:10] [%clk 00:02:06]} 18. Rad1 {[%emt 00:00:40] [%clk 00:00:48]}
dxc3 {[%emt 00:00:02] [%clk 00:02:06]} 19. bxc3 {[%emt 00:00:01] [%clk
00:00:48]} Ne7 {[%clk 00:02:08]} 20. Nd2 {[%emt 00:00:09] [%clk 00:00:41]} Nd5
{[%emt 00:00:16] [%clk 00:01:54]} 21. Bxd5 {[%emt 00:00:11] [%clk 00:00:32]}
Bxd5 {[%emt 00:00:01] [%clk 00:01:55]} 22. Ne4 {[%emt 00:00:05] [%clk 00:00:29]}
Bxe4 {[%emt 00:00:01] [%clk 00:01:56]} 23. Qxe4 {[%emt 00:00:01] [%clk
00:00:30]} O-O {[%emt 00:00:01] [%clk 00:01:57]} 24. Rd3 {[%emt 00:00:03] [%clk
00:00:29]} Rfd8 {[%emt 00:00:04] [%clk 00:01:54]} 25. Rg3 {[%emt 00:00:05] [%clk
00:00:26]} Kh8 {[%emt 00:00:04] [%clk 00:01:53]} 26. Bxh6 {[%emt 00:00:05] [%clk
00:00:23]} Bf8 {[%emt 00:00:27] [%clk 00:01:28]} 27. Qg4 {[%emt 00:00:07] [%clk
00:00:18]} Kh7 {[%emt 00:00:08] [%clk 00:01:22]} 28. Bxg7 {[%emt 00:00:02] [%clk
00:00:18]} Qc5 {[%emt 00:00:05] [%clk 00:01:20]} 29. Bf6 {[%emt 00:00:04] [%clk
00:00:15]} Bh6 {[%emt 00:00:07] [%clk 00:01:15]} 30. Qe4# {[%emt 00:00:01] [%clk
00:00:15]} 1-0

[Site "Europe Echecs"]